[Event "XVII MetLife Najdorf Open 2017"]
[Site "Warsaw"]
[Date "2017.07.15"]
[Round "7"]
[White "Heinemann, Josefine"]
[Black "Deszczynski, Adam"]
[Result "1/2-1/2"]
[ECO "B06"]
[WhiteElo "2294"]
[BlackElo "2380"]
[Annotator "NA RC"]
[PlyCount "101"]
[EventDate "2017.??.??"]
[EventType "swiss"]
[EventCountry "POL"]
[SourceTitle "playchess.com"]
[Source "ChessBase"]
[SourceQuality "1"]
[TimeControl "40/5400+30:1800+30"]

1. e4 {[%emt 0:00:00]} g6 {[%emt 0:02:24]} 2. d4 {[%emt 0:00:00]} Bg7 {[%emt 0:00:08]} 3. Nc3 {[%emt 0:00:00]} d6 {[%emt 0:01:16]} 4. Be3 {[%emt 0:00:00]} a6 {[%emt 0:01:23]} 5. Qd2 {[%emt 0:02:09]} b5 {[%emt 0:05:39]} 6. f3 {[%emt 0:00:21]} Nd7 {[%emt 0:02:14]} 7. g4 {[%emt 0:04:13]} e5 {[%emt 0:08:48]} 8. Nge2 {[%emt 0:04:32]} h5 {[%emt 0:04:53]} 9. gxh5 {[%emt 0:03:56]} Rxh5 {[%emt 0:01:47]} 10. Ng3 {[%emt 0:00:06]} Rh7 {[%emt 0:01:43]} 11. O-O-O {[%emt 0:00:13]} Ngf6 {[%emt 0:02:01]} 12. Kb1 {[%emt 0:05:48]} Bb7 {[%emt 0:03:42]} 13. a3 {[%emt 0:10:53]} Nh5 {[%emt 0:17:38]} 14. Nxh5 {[%emt 0:03:57]} Rxh5 {[%emt 0:00:04]} 15. f4 {[%emt 0:00:18]} exf4 {[%emt 0:16:32]} 16. Bxf4 {[%emt 0:03:09]} Qe7 {[%emt 0:01:07]} 17. Bg2 {[%emt 0:01:42]} O-O-O {[%emt 0:01:55]} 18. Rhe1 {[%emt 0:09:01]} Nb6 {[%emt 0:04:50]} 19. Qd3 {[%emt 0:02:53]} Qd7 {[%emt 0:07:05]} 20. Bf3 {[%emt 0:04:09]} Rhh8 {[%emt 0:00:44]} 21. Bg3 {[%emt 0:00:33]} f5 {[%emt 0:01:59]} 22. Qe2 {[%emt 0:03:15]} Rde8 {[%emt 0:03:00]} 23. Qg2 {[%emt 0:05:20]} Kb8 {[%emt 0:01:39]} 24. exf5 {[%emt 0:06:17]} Bxf3 {[%emt 0:01:24]} 25. Qxf3 {[%emt 0:00:04]} Qxf5 {[%emt 0:00:30]} 26. Qc6 {[%emt 0:01:39]} Qd7 {[%emt 0:00:36]} 27. Qxd7 {[%emt 0:01:30]} Nxd7 {[%emt 0:00:02]} 28. a4 {[%emt 0:00:15]} Rxe1 {[%emt 0:02:34]} 29. Bxe1 {[%emt 0:00:16]} Rh5 {[%emt 0:00:24]} 30. axb5 {[%emt 0:00:17]} axb5 {[%emt 0:00:03]} 31. Bg3 {[%emt 0:00:30]} Nb6 {[%emt 0:01:39]} 32. Ne2 {[%emt 0:00:59]} Nd5 {[%emt 0:00:58]} 33. Rf1 {[%emt 0:01:52]} Rf5 {[%emt 0:00:23]} 34. Rf2 {[%emt 0:04:35]} Kc8 {[%emt 0:02:10]} 35. c3 {[%emt 0:00:24]} Rxf2 {[%emt 0:00:44]} 36. Bxf2 {[%emt 0:00:04]} Kd7 {[%emt 0:00:11]} 37. Kc2 {[%emt 0:01:23]} Ke6 {[%emt 0:00:09]} 38. Ng3 {[%emt 0:00:57]} Bh6 {[%emt 0:00:42]} 39. b3 {[%emt 0:02:17]} Bf4 {[%emt 0:02:33]} 40. c4 {[%emt 0:00:00]} bxc4 {[%emt 0:01:12]} 41. bxc4 {[%emt 0:03:08]} Nf6 {[%emt 0:08:06]} 42. d5+ {[%emt 0:01:55]} Ke5 {[%emt 0:03:15]} 43. Kd3 {[%emt 0:00:08]} Bxg3 {[%emt 0:00:24]} 44. Bxg3+ {[%emt 0:00:11]} Kf5 {[%emt 0:00:50]} 45. Kd4 {[%emt 0:03:04]} Ne4 {[%emt 0:07:57]} 46. Be1 {[%emt 0:00:11]} Nc5 {[%emt 0:04:19]} 47. Bb4 {[%emt 0:00:49]} Na6 {[%emt 0:01:02]} 48. Ba5 {[%emt 0:03:41]} g5 {[%emt 0:01:16]} 49. h3 {[%emt 0:01:07]} Kf4 {[%emt 0:00:29]} 50. Bd2+ {[%emt 0:00:04]} Kf5 {[%emt 0:00:21]} 51. Ba5 {[%emt 0:00:04]} 1/2-1/2

[Event "XVII MetLife Najdorf Open 2017"]
[Site "Warsaw"]
[Date "2017.07.15"]
[Round "7"]
[White "Niekras, Dawid"]
[Black "Nowak, Kamil"]
[Result "1/2-1/2"]
[ECO "C15"]
[WhiteElo "2291"]
[BlackElo "2362"]
[Annotator "NA RC"]
[PlyCount "48"]
[EventDate "2017.??.??"]
[EventType "swiss"]
[EventCountry "POL"]
[SourceTitle "playchess.com"]
[Source "ChessBase"]
[SourceQuality "1"]
[TimeControl "40/5400+30:1800+30"]

1. e4 {[%emt 0:00:00]} e6 {[%emt 0:00:06]} 2. d4 {[%emt 0:00:00]} d5 {[%emt 0:00:05]} 3. Nc3 {[%emt 0:00:00]} Bb4 {[%emt 0:00:05]} 4. Nge2 {[%emt 0:00:00]} dxe4 {[%emt 0:04:34]} 5. a3 {[%emt 0:00:00]} Be7 {[%emt 0:00:45]} 6. Nxe4 {[%emt 0:00:27]} Nf6 {[%emt 0:03:25]} 7. Nxf6+ {[%emt 0:13:44]} Bxf6 {[%emt 0:00:13]} 8. Be3 {[%emt 0:00:07]} O-O {[%emt 0:12:17]} 9. c3 {[%emt 0:11:06]} Nd7 {[%emt 0:01:41]} 10. g3 {[%emt 0:13:01]} e5 {[%emt 0:05:49]} 11. Bg2 {[%emt 0:04:49]} exd4 {[%emt 0:02:49]} 12. Nxd4 {[%emt 0:00:38]} Ne5 {[%emt 0:00:31]} 13. O-O {[%emt 0:03:04]} Nc4 {[%emt 0:00:49]} 14. Bf4 {[%emt 0:12:09]} Nxb2 {[%emt 0:06:49]} 15. Qc2 {[%emt 0:11:37]} c5 {[%emt 0:01:53]} 16. Nb5 {[%emt 0:02:17]} Nd3 {[%emt 0:00:11]} 17. Rad1 {[%emt 0:01:58]} c4 {[%emt 0:01:32]} 18. Nc7 {[%emt 0:03:53]} Bg4 {[%emt 0:06:18]} 19. Nxa8 {[%emt 0:07:51]} Bxd1 {[%emt 0:00:55]} 20. Rxd1 {[%emt 0:00:06]} Qxa8 {[%emt 0:00:03]} 21. Be3 {[%emt 0:00:06]} Qb8 {[%emt 0:08:08]} 22. Be4 {[%emt 0:02:27]} Rd8 {[%emt 0:00:40]} 23. Bxd3 {[%emt 0:00:28]} cxd3 {[%emt 0:00:07]} 24. Rxd3 {[%emt 0:00:05]} a6 {[%emt 0:00:45]} 1/2-1/2

[Event "XVII MetLife Najdorf Open 2017"]
[Site "Warsaw"]
[Date "2017.07.15"]
[Round "7"]
[White "Siekanski, Janusz"]
[Black "Walter, Szymon"]
[Result "1-0"]
[ECO "D85"]
[WhiteElo "2287"]
[BlackElo "2220"]
[Annotator "NA RC"]
[PlyCount "65"]
[EventDate "2017.??.??"]
[EventType "swiss"]
[EventCountry "POL"]
[SourceTitle "playchess.com"]
[Source "ChessBase"]
[SourceQuality "1"]
[TimeControl "40/5400+30:1800+30"]

1. d4 {[%emt 0:00:00]} Nf6 {[%emt 0:00:07]} 2. c4 {[%emt 0:00:00]} g6 {[%emt 0:00:08]} 3. Nc3 {[%emt 0:00:00]} d5 {[%emt 0:00:07]} 4. cxd5 {[%emt 0:00:00]} Nxd5 {[%emt 0:00:09]} 5. e4 {[%emt 0:00:08]} Nxc3 {[%emt 0:00:06]} 6. bxc3 {[%emt 0:00:01]} Bg7 {[%emt 0:00:11]} 7. Qa4+ {[%emt 0:00:13]} Nd7 {[%emt 0:01:22]} 8. Nf3 {[%emt 0:02:07]} O-O {[%emt 0:00:43]} 9. Bg5 {[%emt 0:00:55]} c5 {[%emt 0:11:56]} 10. Qa3 {[%emt 0:10:41]} Qc7 {[%emt 0:09:39]} 11. Bd3 {[%emt 0:06:39]} cxd4 {[%emt 0:12:31]} 12. cxd4 {[%emt 0:00:29]} Nc5 {[%emt 0:00:55]} 13. O-O {[%emt 0:00:25]} Nxd3 {[%emt 0:00:27]} 14. Qxd3 {[%emt 0:00:05]} Bg4 {[%emt 0:01:21]} 15. Rac1 {[%emt 0:00:40]} Qd7 {[%emt 0:03:23]} 16. d5 {[%emt 0:01:19]} Bxf3 {[%emt 0:11:09]} 17. Qxf3 {[%emt 0:01:11]} e6 {[%emt 0:00:40]} 18. Rfd1 {[%emt 0:21:11]} exd5 {[%emt 0:05:31]} 19. exd5 {[%emt 0:05:24]} Rac8 {[%emt 0:00:24]} 20. h4 {[%emt 0:03:30]} h5 {[%emt 0:05:26]} 21. Rxc8 {[%emt 0:07:29]} Rxc8 {[%emt 0:00:39]} 22. d6 {[%emt 0:00:27]} b5 {[%emt 0:07:36]} 23. Qd5 {[%emt 0:03:18]} a5 {[%emt 0:09:41]} 24. g3 {[%emt 0:04:14]} a4 {[%emt 0:01:57]} 25. Rb1 {[%emt 0:10:04]} Rb8 {[%emt 0:02:03]} 26. Rc1 {[%emt 0:01:36]} Rb7 {[%emt 0:00:30]} 27. a3 {[%emt 0:05:51]} Kh7 {[%emt 0:07:37]} 28. Bd2 {[%emt 0:01:44]} Bf6 {[%emt 0:03:35]} 29. Bb4 {[%emt 0:01:09]} Ra7 {[%emt 0:00:39]} 30. Rc6 {[%emt 0:02:11]} Rb7 {[%emt 0:01:20]} 31. Kh2 {[%emt 0:01:10]} Kg7 {[%emt 0:00:20]} 32. Qc5 {[%emt 0:01:27]} Qe6 {[%emt 0:01:07]} 33. d7 {[%emt 0:01:17]} 1-0

[Event "XVII MetLife Najdorf Open 2017"]
[Site "Warsaw"]
[Date "2017.07.15"]
[Round "7"]
[White "Othman, A  Moussa"]
[Black "Baasansuren, Erdene"]
[Result "1/2-1/2"]
[ECO "E84"]
[WhiteElo "2277"]
[BlackElo "2128"]
[Annotator "NA RC"]
[PlyCount "148"]
[EventDate "2017.??.??"]
[EventType "swiss"]
[EventCountry "POL"]
[SourceTitle "playchess.com"]
[Source "ChessBase"]
[SourceQuality "1"]
[TimeControl "40/5400+30:1800+30"]

1. d4 {[%emt 0:00:00]} Nf6 {[%emt 0:00:16]} 2. c4 {[%emt 0:00:00]} g6 {[%emt 0:00:41]} 3. Nc3 {[%emt 0:00:00]} Bg7 {[%emt 0:00:39]} 4. e4 {[%emt 0:00:00]} d6 {[%emt 0:00:23]} 5. f3 {[%emt 0:00:05]} O-O {[%emt 0:01:04]} 6. Be3 {[%emt 0:00:03]} Nc6 {[%emt 0:01:11]} 7. Nge2 {[%emt 0:02:28]} a6 {[%emt 0:01:25]} 8. Qd2 {[%emt 0:01:06]} Rb8 {[%emt 0:00:38]} 9. Rc1 {[%emt 0:00:41]} Bd7 {[%emt 0:02:51]} 10. h4 {[%emt 0:01:09]} h5 {[%emt 0:04:09]} 11. Nd1 {[%emt 0:00:39]} b5 {[%emt 0:07:21]} 12. c5 {[%emt 0:00:09]} Re8 {[%emt 0:01:29]} 13. Nf2 {[%emt 0:09:18]} dxc5 {[%emt 0:04:27]} 14. Rxc5 {[%emt 0:00:42]} e5 {[%emt 0:01:11]} 15. d5 {[%emt 0:06:45]} Ne7 {[%emt 0:00:55]} 16. Qc1 {[%emt 0:03:40]} Bf8 {[%emt 0:04:00]} 17. Rxc7 {[%emt 0:10:57]} Nexd5 {[%emt 0:07:07]} 18. exd5 {[%emt 0:06:15]} Bb4+ {[%emt 0:11:13]} 19. Bd2 {[%emt 0:10:07]} Bxd2+ {[%emt 0:06:33]} 20. Kxd2 {[%emt 0:00:07]} Nxd5 {[%emt 0:07:16]} 21. Rc5 {[%emt 0:05:12]} Bf5 {[%emt 0:17:59]} 22. Ke1 {[%emt 0:04:41]} e4 {[%emt 0:09:33]} 23. fxe4 {[%emt 0:09:14]} Bxe4 {[%emt 0:04:21]} 24. Qd2 {[%emt 0:04:34]} Ne3 {[%emt 0:03:18]} 25. Nxe4 {[%emt 0:17:10]} Rxe4 {[%emt 0:00:21]} 26. Qxd8+ {[%emt 0:02:08]} Rxd8 {[%emt 0:00:05]} 27. Kf2 {[%emt 0:03:25]} Ng4+ {[%emt 0:02:19]} 28. Kg1 {[%emt 0:00:28]} Rd2 {[%emt 0:00:24]} 29. Rh3 {[%emt 0:02:10]} Rexe2 {[%emt 0:00:46]} 30. Bxe2 {[%emt 0:00:01]} Rxe2 {[%emt 0:00:07]} 31. Rf3 {[%emt 0:01:35]} Rxb2 {[%emt 0:00:34]} 32. a3 {[%emt 0:00:34]} Ra2 {[%emt 0:01:03]} 33. Rc7 {[%emt 0:00:13]} Ne5 {[%emt 0:00:33]} 34. Rfc3 {[%emt 0:00:30]} Nc4 {[%emt 0:00:39]} 35. Rf3 {[%emt 0:00:10]} Ne5 {[%emt 0:00:18]} 36. Rfc3 {[%emt 0:00:27]} Nc4 {[%emt 0:00:08]} 37. Ra7 {[%emt 0:00:25]} a5 {[%emt 0:00:48]} 38. Rb3 {[%emt 0:00:44]} a4 {[%emt 0:00:30]} 39. Rxb5 {[%emt 0:00:08]} Rxa3 {[%emt 0:00:04]} 40. Rb4 {[%emt 0:00:00]} Ra1+ {[%emt 0:00:57]} 41. Kh2 {[%emt 0:03:33]} Ne3 {[%emt 0:03:58]} 42. Rbxa4 {[%emt 0:02:49]} Rf1 {[%emt 0:06:03]} 43. Ra3 {[%emt 0:05:19]} Ng4+ {[%emt 0:04:19]} 44. Kg3 {[%emt 0:00:12]} Nh6 {[%emt 0:01:17]} 45. Ra1 {[%emt 0:03:04]} Rf6 {[%emt 0:02:38]} 46. R7a6 {[%emt 0:01:15]} Rf5 {[%emt 0:00:37]} 47. R6a3 {[%emt 0:01:55]} Kg7 {[%emt 0:01:05]} 48. Rf3 {[%emt 0:01:12]} Rb5 {[%emt 0:00:26]} 49. Ra4 {[%emt 0:01:00]} Nf5+ {[%emt 0:01:06]} 50. Kh3 {[%emt 0:01:24]} Nh6 {[%emt 0:00:11]} 51. Kg3 {[%emt 0:01:58]} Nf5+ {[%emt 0:00:06]} 52. Kf2 {[%emt 0:01:19]} Rb2+ {[%emt 0:00:17]} 53. Kf1 {[%emt 0:02:03]} Rb1+ {[%emt 0:00:07]} 54. Kf2 {[%emt 0:00:00]} Rb2+ {[%emt 0:00:09]} 55. Kg1 {[%emt 0:00:37]} Rb1+ {[%emt 0:00:54]} 56. Rf1 {[%emt 0:01:53]} Rb2 {[%emt 0:03:26]} 57. Raf4 {[%emt 0:01:33]} Nh6 {[%emt 0:01:08]} 58. Kh2 {[%emt 0:01:29]} Rb3 {[%emt 0:00:40]} 59. Kg1 {[%emt 0:02:20]} Rb2 {[%emt 0:00:07]} 60. R1f2 {[%emt 0:01:08]} Rb1+ {[%emt 0:01:32]} 61. Rf1 {[%emt 0:00:06]} Rb2 {[%emt 0:01:06]} 62. R4f2 {[%emt 0:00:29]} Rb3 {[%emt 0:01:56]} 63. Rf3 {[%emt 0:00:23]} Rb4 {[%emt 0:00:53]} 64. g3 {[%emt 0:00:15]} Rb2 {[%emt 0:00:25]} 65. R1f2 {[%emt 0:00:23]} Rb7 {[%emt 0:00:36]} 66. Rd2 {[%emt 0:01:29]} Re7 {[%emt 0:00:41]} 67. Kf1 {[%emt 0:00:14]} Nf5 {[%emt 0:01:47]} 68. Kf2 {[%emt 0:00:38]} Nh6 {[%emt 0:01:38]} 69. Re2 {[%emt 0:00:09]} Ng4+ {[%emt 0:00:15]} 70. Ke1 {[%emt 0:00:14]} Rd7 {[%emt 0:00:05]} 71. Re4 {[%emt 0:00:35]} Nf6 {[%emt 0:00:41]} 72. Re2 {[%emt 0:01:41]} Ng4 {[%emt 0:00:05]} 73. Re4 {[%emt 0:00:40]} Nf6 {[%emt 0:00:07]} 74. Re2 {[%emt 0:00:23]} Ng4 {[%emt 0:00:27]} 1/2-1/2

[Event "XVII MetLife Najdorf Open 2017"]
[Site "Warsaw"]
[Date "2017.07.15"]
[Round "7"]
[White "Chylewski, Patryk"]
[Black "Lewtak, Damian"]
[Result "0-1"]
[ECO "B66"]
[WhiteElo "2275"]
[BlackElo "2341"]
[Annotator "RC"]
[PlyCount "62"]
[EventDate "2017.??.??"]
[EventType "swiss"]
[EventCountry "POL"]
[SourceTitle "playchess.com"]
[Source "ChessBase"]
[SourceQuality "1"]
[TimeControl "40/5400+30:1800+30"]

1. e4 {[%emt 0:00:00]} c5 {[%emt 0:00:04]} 2. Nf3 {[%emt 0:00:00]} d6 {[%emt 0:00:08]} 3. d4 {[%emt 0:00:00]} cxd4 {[%emt 0:00:17]} 4. Nxd4 {[%emt 0:00:00]} Nf6 {[%emt 0:00:03]} 5. Nc3 {[%emt 0:00:06]} Nc6 {[%emt 0:00:14]} 6. Bg5 {[%emt 0:00:25]} e6 {[%emt 0:00:38]} 7. Qd2 {[%emt 0:00:52]} a6 {[%emt 0:00:06]} 8. O-O-O {[%emt 0:00:16]} h6 {[%emt 0:00:03]} 9. Bxf6 {[%emt 0:04:22]} Qxf6 {[%emt 0:00:46]} 10. Nb3 {[%emt 0:02:34]} Qd8 {[%emt 0:02:18]} 11. Kb1 {[%emt 0:01:03]} Bd7 {[%emt 0:02:25]} 12. f4 {[%emt 0:05:20]} Qc7 {[%emt 0:00:39]} 13. g3 {[%emt 0:03:14]} Be7 {[%emt 0:01:41]} 14. Bg2 {[%emt 0:03:13]} b5 {[%emt 0:01:42]} 15. Rhe1 {[%emt 0:12:37]} b4 {[%emt 0:00:16]} 16. Ne2 {[%emt 0:06:27]} e5 {[%emt 0:02:47]} 17. Qd3 {[%emt 0:14:34]} O-O {[%emt 0:01:42]} 18. c4 {[%emt 0:04:38]} bxc3 {[%emt 0:01:46]} 19. Nxc3 {[%emt 0:00:18]} Nb4 {[%emt 0:00:23]} 20. Qd2 {[%emt 0:02:20]} Be6 {[%emt 0:01:27]} 21. Nd5 {[%emt 0:07:24]} Nxd5 {[%emt 0:00:39]} 22. exd5 {[%emt 0:00:05]} Bf5+ {[%emt 0:00:40]} 23. Ka1 {[%emt 0:00:26]} exf4 {[%emt 0:01:33]} 24. Qxf4 {[%emt 0:10:25]} Bg6 {[%emt 0:03:06]} 25. Nd4 {[%emt 0:11:44]} Bf6 {[%emt 0:00:28]} 26. Nc6 {[%emt 0:00:47]} Rab8 {[%emt 0:01:48]} 27. Re2 {[%emt 0:02:35]} Rb5 {[%emt 0:01:00]} 28. g4 {[%emt 0:04:06]} Qb6 {[%emt 0:01:32]} 29. Qc1 {[%emt 0:03:34]} Kh7 {[%emt 0:05:10]} 30. h4 {[%emt 0:00:56]} Re8 {[%emt 0:01:41]} 31. Red2 {[%emt 0:00:38]} Rc5 {[%emt 0:00:14]} 0-1

[Event "XVII MetLife Najdorf Open 2017"]
[Site "Warsaw"]
[Date "2017.07.15"]
[Round "7"]
[White "Nowicki, Bartosz"]
[Black "Prithu Gupta"]
[Result "1-0"]
[ECO "C72"]
[WhiteElo "2262"]
[BlackElo "2293"]
[Annotator "NA RC"]
[PlyCount "75"]
[EventDate "2017.??.??"]
[EventType "swiss"]
[EventCountry "POL"]
[SourceTitle "playchess.com"]
[Source "ChessBase"]
[SourceQuality "1"]
[TimeControl "40/5400+30:1800+30"]

1. e4 {[%emt 0:02:43]} e5 {[%emt 0:00:04]} 2. Nf3 {[%emt 0:00:04]} Nc6 {[%emt 0:00:05]} 3. Bb5 {[%emt 0:00:05]} a6 {[%emt 0:00:06]} 4. Ba4 {[%emt 0:00:25]} d6 {[%emt 0:00:08]} 5. O-O {[%emt 0:00:09]} Bd7 {[%emt 0:00:07]} 6. c3 {[%emt 0:00:08]} Nf6 {[%emt 0:00:19]} 7. Re1 {[%emt 0:00:08]} g6 {[%emt 0:01:12]} 8. d4 {[%emt 0:01:15]} Bg7 {[%emt 0:00:21]} 9. d5 {[%emt 0:02:58]} Ne7 {[%emt 0:02:17]} 10. c4 {[%emt 0:00:51]} O-O {[%emt 0:00:23]} 11. c5 {[%emt 0:03:58]} Bxa4 {[%emt 0:00:27]} 12. Qxa4 {[%emt 0:00:02]} dxc5 {[%emt 0:04:40]} 13. Nxe5 {[%emt 0:01:35]} Qd6 {[%emt 0:00:20]} 14. Nc4 {[%emt 0:01:57]} b5 {[%emt 0:04:52]} 15. Nxd6 {[%emt 0:00:25]} bxa4 {[%emt 0:00:05]} 16. Nc4 {[%emt 0:04:20]} Rfe8 {[%emt 0:02:12]} 17. Bd2 {[%emt 0:01:43]} Nc8 {[%emt 0:01:27]} 18. f3 {[%emt 0:05:44]} Nd6 {[%emt 0:01:11]} 19. Nba3 {[%emt 0:02:26]} Nd7 {[%emt 0:08:18]} 20. Bf4 {[%emt 0:16:01]} Rab8 {[%emt 0:17:21]} 21. Rac1 {[%emt 0:08:56]} Bxb2 {[%emt 0:19:46]} 22. Nxb2 {[%emt 0:04:03]} Rxb2 {[%emt 0:00:02]} 23. Nc4 {[%emt 0:01:01]} Rxa2 {[%emt 0:00:59]} 24. Nxd6 {[%emt 0:00:35]} cxd6 {[%emt 0:00:07]} 25. Bxd6 {[%emt 0:00:05]} Rc8 {[%emt 0:01:37]} 26. Re3 {[%emt 0:13:34]} Rb2 {[%emt 0:06:04]} 27. Rc4 {[%emt 0:04:41]} Rb3 {[%emt 0:01:10]} 28. Kf2 {[%emt 0:01:06]} Rxe3 {[%emt 0:00:48]} 29. Kxe3 {[%emt 0:00:06]} Nb6 {[%emt 0:01:01]} 30. Rc3 {[%emt 0:05:06]} c4 {[%emt 0:17:03]} 31. Bb4 {[%emt 0:03:22]} Na8 {[%emt 0:04:15]} 32. Kd4 {[%emt 0:01:34]} Nc7 {[%emt 0:00:29]} 33. Rxc4 {[%emt 0:00:21]} Nb5+ {[%emt 0:00:07]} 34. Kd3 {[%emt 0:00:08]} Rb8 {[%emt 0:00:38]} 35. Be7 {[%emt 0:03:10]} a3 {[%emt 0:01:14]} 36. Ra4 {[%emt 0:00:56]} Rc8 {[%emt 0:00:11]} 37. d6 {[%emt 0:01:48]} Rc1 {[%emt 0:01:00]} 38. Kd2 {[%emt 0:00:43]} 1-0

[Event "XVII MetLife Najdorf Open 2017"]
[Site "Warsaw"]
[Date "2017.07.15"]
[Round "7"]
[White "Zlatin, Alexander"]
[Black "Godzwon, Iwo"]
[Result "1-0"]
[ECO "B22"]
[WhiteElo "2259"]
[BlackElo "2205"]
[Annotator "NA RC"]
[PlyCount "169"]
[EventDate "2017.??.??"]
[EventType "swiss"]
[EventCountry "POL"]
[SourceTitle "playchess.com"]
[Source "ChessBase"]
[SourceQuality "1"]
[TimeControl "40/5400+30:1800+30"]

1. e4 {[%emt 0:00:00]} c5 {[%emt 0:00:03]} 2. c3 {[%emt 0:00:00]} d5 {[%emt 0:00:03]} 3. exd5 {[%emt 0:00:00]} Qxd5 {[%emt 0:00:04]} 4. d4 {[%emt 0:00:00]} Nc6 {[%emt 0:00:16]} 5. Nf3 {[%emt 0:00:01]} Bf5 {[%emt 0:00:08]} 6. Be3 {[%emt 0:03:36]} Nf6 {[%emt 0:00:18]} 7. Qb3 {[%emt 0:10:14]} cxd4 {[%emt 0:07:11]} 8. Bc4 {[%emt 0:15:12]} Na5 {[%emt 0:02:18]} 9. Bb5+ {[%emt 0:11:45]} Bd7 {[%emt 0:01:26]} 10. Qxd5 {[%emt 0:00:12]} Nxd5 {[%emt 0:00:05]} 11. Bxd7+ {[%emt 0:00:53]} Kxd7 {[%emt 0:00:06]} 12. Bxd4 {[%emt 0:05:45]} f6 {[%emt 0:02:03]} 13. Nbd2 {[%emt 0:06:18]} e5 {[%emt 0:01:28]} 14. Be3 {[%emt 0:00:13]} Ke6 {[%emt 0:01:33]} 15. O-O-O {[%emt 0:07:32]} Nxe3 {[%emt 0:04:12]} 16. fxe3 {[%emt 0:00:51]} Rc8 {[%emt 0:00:14]} 17. e4 {[%emt 0:03:21]} Be7 {[%emt 0:03:47]} 18. Rhf1 {[%emt 0:05:31]} Bc5 {[%emt 0:04:41]} 19. Nh4 {[%emt 0:04:56]} g6 {[%emt 0:01:25]} 20. Rf3 {[%emt 0:00:24]} Rhf8 {[%emt 0:01:13]} 21. g4 {[%emt 0:00:41]} Be7 {[%emt 0:00:28]} 22. Ng2 {[%emt 0:04:17]} f5 {[%emt 0:02:18]} 23. gxf5+ {[%emt 0:04:51]} gxf5 {[%emt 0:00:04]} 24. exf5+ {[%emt 0:00:46]} Rxf5 {[%emt 0:00:06]} 25. Rxf5 {[%emt 0:00:37]} Kxf5 {[%emt 0:00:06]} 26. Ne3+ {[%emt 0:00:13]} Ke6 {[%emt 0:00:06]} 27. Ne4 {[%emt 0:01:23]} Nc6 {[%emt 0:01:32]} 28. Kd2 {[%emt 0:02:05]} Rd8+ {[%emt 0:05:26]} 29. Ke2 {[%emt 0:00:22]} Rxd1 {[%emt 0:00:05]} 30. Nxd1 {[%emt 0:00:48]} Nb8 {[%emt 0:02:09]} 31. Ne3 {[%emt 0:01:48]} Nd7 {[%emt 0:00:05]} 32. Kf3 {[%emt 0:01:36]} Nc5 {[%emt 0:00:13]} 33. Nxc5+ {[%emt 0:01:20]} Bxc5 {[%emt 0:00:05]} 34. Nc4 {[%emt 0:00:15]} Kf5 {[%emt 0:03:18]} 35. Nd2 {[%emt 0:00:04]} Bg1 {[%emt 0:02:26]} 36. h3 {[%emt 0:00:19]} Bc5 {[%emt 0:04:38]} 37. Ne4 {[%emt 0:00:32]} Be7 {[%emt 0:00:04]} 38. Ng3+ {[%emt 0:00:36]} Ke6 {[%emt 0:00:09]} 39. Ke4 {[%emt 0:00:09]} Bg5 {[%emt 0:02:16]} 40. Ne2 {[%emt 0:00:00]} h6 {[%emt 0:06:09]} 41. Ng1 {[%emt 0:02:29]} Bc1 {[%emt 0:00:08]} 42. b3 {[%emt 0:00:12]} Bb2 {[%emt 0:00:11]} 43. Ne2 {[%emt 0:00:22]} a5 {[%emt 0:01:03]} 44. a4 {[%emt 0:01:56]} Ba3 {[%emt 0:01:41]} 45. Ng3 {[%emt 0:01:27]} Bc1 {[%emt 0:01:47]} 46. Nf5 {[%emt 0:01:23]} Bd2 {[%emt 0:00:19]} 47. c4 {[%emt 0:01:28]} Bc1 {[%emt 0:04:19]} 48. Nh4 {[%emt 0:05:49]} Bb2 {[%emt 0:07:14]} 49. Ng2 {[%emt 0:01:17]} Kf6 {[%emt 0:03:12]} 50. Ne1 {[%emt 0:03:32]} Bd4 {[%emt 0:08:12]} 51. Nd3 {[%emt 0:04:08]} Ke6 {[%emt 0:00:06]} 52. Ne1 {[%emt 0:02:26]} Bb2 {[%emt 0:00:45]} 53. Nf3 {[%emt 0:02:28]} Bc3 {[%emt 0:00:25]} 54. Nh4 {[%emt 0:00:21]} Be1 {[%emt 0:01:07]} 55. Nf5 {[%emt 0:01:06]} Bd2 {[%emt 0:00:04]} 56. c5 {[%emt 0:02:08]} Bb4 {[%emt 0:21:06]} 57. Nxh6 {[%emt 0:00:14]} Bxc5 {[%emt 0:00:03]} 58. Nf5 {[%emt 0:00:23]} Kf6 {[%emt 0:00:19]} 59. h4 {[%emt 0:00:04]} Ba3 {[%emt 0:00:19]} 60. h5 {[%emt 0:00:37]} Bb2 {[%emt 0:00:15]} 61. Nd6 {[%emt 0:02:12]} Kg5 {[%emt 0:01:04]} 62. Nxb7 {[%emt 0:01:17]} Bc3 {[%emt 0:00:03]} 63. Nd6 {[%emt 0:00:52]} Kxh5 {[%emt 0:00:04]} 64. Nc4 {[%emt 0:00:03]} Kg5 {[%emt 0:00:03]} 65. Nxe5 {[%emt 0:00:43]} Kf6 {[%emt 0:00:04]} 66. Nc6 {[%emt 0:00:20]} Ke6 {[%emt 0:00:07]} 67. Kd3 {[%emt 0:00:12]} Be1 {[%emt 0:00:48]} 68. Kc4 {[%emt 0:00:08]} Kd6 {[%emt 0:00:07]} 69. Kb5 {[%emt 0:00:05]} Kc7 {[%emt 0:00:04]} 70. Nxa5 {[%emt 0:00:05]} Kb8 {[%emt 0:00:03]} 71. Nc6+ {[%emt 0:00:20]} Kb7 {[%emt 0:00:04]} 72. a5 {[%emt 0:00:05]} Bf2 {[%emt 0:00:03]} 73. b4 {[%emt 0:00:25]} Bg1 {[%emt 0:00:02]} 74. Nd8+ {[%emt 0:00:12]} Ka7 {[%emt 0:00:25]} 75. Kc6 {[%emt 0:00:20]} Ka6 {[%emt 0:00:35]} 76. Nb7 {[%emt 0:00:18]} Bh2 {[%emt 0:00:03]} 77. Nc5+ {[%emt 0:00:14]} Ka7 {[%emt 0:00:02]} 78. b5 {[%emt 0:00:10]} Bg3 {[%emt 0:00:13]} 79. b6+ Ka8 {[%emt 0:00:07]} 80. Na6 {[%emt 0:01:14]} Bf4 {[%emt 0:00:27]} 81. Nc7+ {[%emt 0:00:23]} Kb8 {[%emt 0:00:06]} 82. a6 {[%emt 0:00:25]} Bxc7 {[%emt 0:00:09]} 83. a7+ {[%emt 0:00:15]} Ka8 {[%emt 0:00:04]} 84. bxc7 {[%emt 0:00:05]} Kxa7 {[%emt 0:00:04]} 85. c8=R {[%emt 0:00:05]} 1-0